[Event "1st Kallai Gabor Memorial 2022"]
[Site "Budapest"]
[Date "2022.11.28"]
[Round "3.2"]
[White "Berkes, Ferenc"]
[Black "Bjerre, Jonas Buhl"]
[Result "0-1"]
[ECO "A46"]
[WhiteElo "2643"]
[BlackElo "2622"]
[Annotator "TA"]
[PlyCount "62"]
[EventDate "2022.11.28"]
[EventCountry "HUN"]
[SourceTitle "playchess.com"]
[Source "ChessBase"]
[SourceQuality "1"]
[TimeControl "1500+5"]

{[%evp 16,62,18,8,20,23,11,10,7,-28,-10,-19,-25,-70,-47,-166,-120,-108,-112,-146,-50,-49,-39,-37,0,-66,-55,-106,-79,-118,-116,-94,-89,-206,-205,-287,-222,-289,-278,-270,-183,-2782,-1224,-29989,-29990,-29995,-29996,-29996,-29997]} 1. d4 Nf6 {[%emt 0:00:07]} 2. Nf3 {[%emt 0:00:08]} d5 {[%emt 0:00:02]} 3. c3 e6 {[%emt 0:00:54]} 4. Bg5 {[%emt 0:00:03]} Nbd7 {[%emt 0:00:13]} 5. Nbd2 {[%emt 0:00:07]} h6 {[%emt 0:00:04]} 6. Bh4 {[%emt 0:00:01]} Be7 {[%emt 0:00:02]} 7. e3 {[%emt 0:00:02]} c5 {[%emt 0:00:04]} 8. Bd3 {[%emt 0:00:02]} b6 {[%emt 0:00:07]} 9. Ne5 Bb7 {[%emt 0:02:37] Prevents Nc6. D03: 1 d4 d5 2 Nf3 Nf6 3 Bg5, including Torre Attack with early ...d5.} (9... Nxe5 {simplifies} 10. dxe5 Nd7 11. Bxe7 Qxe7 12. f4 c4) 10. f4 {[%emt 0:01:28]} O-O {[%emt 0:00:28]} 11. Qf3 {[%emt 0:02:26]} Nxe5 {[%emt 0:00:09] The position is equal.} 12. fxe5 {[%emt 0:00:04]} (12. dxe5 {simplifies} Ne4 13. Bxe7 Nxd2 14. Bxd8 Nxf3+ 15. gxf3 Raxd8 16. Ke2) 12... Ne4 {[%emt 0:00:18]} 13. Bxe7 {[%emt 0:00:08]} Qxe7 {[%emt 0:00:08] [#]} 14. O-O-O $146 {[%emt 0:01:20][%cal Rd2e4]} (14. Nxe4 $2 dxe4 15. Bxe4 Qh4+ 16. g3 Bxe4 $19) ({Predecessor:} 14. Bxe4 dxe4 15. Qg3 f5 16. exf6 Rxf6 17. O-O-O cxd4 18. exd4 e5 19. dxe5 Rf5 20. Nc4 {1-0 (60) Mikhalevski,V (2557)-Khachiyan,M (2525) Saint Louis 2018}) 14... f5 {[%emt 0:00:12][%cal Oe4c3]} (14... Nxc3 {is more complex.} 15. bxc3 c4 16. Bb1 Qa3+) 15. Rdf1 {[%emt 0:01:11]} ({White should play} 15. Qe2 $15) 15... cxd4 {[%emt 0:02:00]} ({Black should try} 15... Rac8 $19 {Threatens to win with ...cxd4.} 16. Kc2 cxd4 17. exd4 Qb4 18. Bxe4 dxe4) 16. exd4 $17 {[%emt 0:00:04]} Rac8 {[%emt 0:00:02][%cal Oe4c3]} 17. Kd1 {[%emt 0:00:40]} Qg5 {[%emt 0:01:41]} (17... Qe8 $17 {White must now prevent ...Qa4+.} 18. Ke1 Qa4) 18. Qe2 $1 $15 {[%emt 0:01:39]} b5 {[%emt 0:01:50]} 19. Bxb5 Rc7 (19... Rxc3 $5 20. h4 $8 Qe3 21. Qxe3 Rxe3 $11) 20. Rf3 {[%emt 0:03:21]} (20. g4 $11) 20... Rb8 $1 {[%emt 0:03:30][%mdl 1024] Black has compensation. Black has more active pieces.} 21. Nb3 (21. Rhf1 $15) 21... Ba8 {[%emt 0:01:13][%cal Oa7a5]} 22. Rhf1 {[%emt 0:01:32]} a5 $1 {[%emt 0:01:02][%cal Oa5a4]} 23. a4 {[%emt 0:01:17]} (23. Nxa5 $2 Rxb5 $1 {[%mdl 512]} 24. h4 Qd2+ 25. Qxd2 Nxd2 26. Kxd2 Rxa5 $19) 23... Bc6 {[%emt 0:00:02]} 24. Bxc6 {[%emt 0:00:37]} (24. Nxa5 $2 Rxb5 $1 25. Nxc6 (25. axb5 $2 {loses.} Bxb5 26. c4 Bxc4 $19) 25... Rbb7 $19) (24. Nd2 $17) 24... Rxc6 $19 {[%emt 0:00:40][%cal Bc7c6,Bc6b6,Bb6b4][%mdl 32]} 25. Nxa5 {[%emt 0:00:08] [#]} Rcb6 26. b4 {[%emt 0:01:18] [#] And now Nb3 would win.} Nxc3+ $1 {[%emt 0:02:14][%mdl 576] Remove Defender} 27. Rxc3 {[%emt 0:00:01] Hoping for b5.} Rxb4 {[%emt 0:00:01] ( -> ...Rb1+)} 28. Ke1 $2 {[%emt 0:02:39]} (28. Nc6 {is a self mate.} Rb1+ 29. Kc2 R8b2+ 30. Kd3 Rxe2) (28. h4 Qxh4 29. Nc6 Rb1+ 30. Rc1 Rxc1+ 31. Kxc1) 28... Qh4+ {[%emt 0:01:33]} 29. Qf2 {[%emt 0:02:53]} Qe4+ {[%emt 0:00:51] Black mates.} 30. Qe3 {[%emt 0:00:43]} Rb1+ {[%emt 0:00:31]} ({Worse is} 30... Qxg2 31. Nb3 $11) 31. Kf2 {[%emt 0:00:01]} R8b2+ {[%emt 0:00:09][%mdl 64] Skewer.   Weighted Error Value: White=0.63/Black=0.12 (very precise)} 0-1

[Event "1st Kallai Gabor Memorial 2022"]
[Site "Budapest"]
[Date "2022.11.28"]
[Round "3.3"]
[White "Borhy, Marcell"]
[Black "Kozak, Adam"]
[Result "1/2-1/2"]
[ECO "A13"]
[WhiteElo "2407"]
[BlackElo "2538"]
[Annotator "TA"]
[PlyCount "72"]
[EventDate "2022.11.28"]
[EventCountry "HUN"]
[SourceTitle "playchess.com"]
[Source "ChessBase"]
[SourceQuality "1"]
[TimeControl "1500+5"]

{[%evp 9,72,19,23,5,10,6,10,8,15,12,10,13,8,10,4,0,0,0,4,10,10,8,17,14,33,33,45,50,43,45,44,41,60,70,64,60,49,60,72,66,61,49,55,56,69,42,52,24,40,24,33,22,25,20,16,8,14,6,6,0,7,7,14,7,10]} 1. c4 {[%emt 0:00:07]} Nf6 {[%emt 0:00:11]} 2. Nf3 {[%emt 0:00:05]} e6 {[%emt 0:00:02]} 3. g3 {[%emt 0:00:06]} d5 {[%emt 0:00:04]} 4. Bg2 {[%emt 0:00:02]} dxc4 {[%emt 0:00:49]} 5. Qa4+ {[%emt 0:00:02]} Bd7 {[%emt 0:00:05]} 6. Qxc4 {[%emt 0:00:02] A13: English Opening: 1...e6.} c5 {[%emt 0:00:01]} 7. Ne5 {[%emt 0:00:02]} Qc8 {[%emt 0:00:01]} 8. Qd3 $1 {[%emt 0:00:02] 8.Qd3 is better than 8.0-0.} Nc6 {[%emt 0:00:11]} 9. Nxd7 {[%emt 0:00:02]} Nxd7 {[%emt 0:00:03]} 10. Nc3 {[%emt 0:00:03]} Be7 {[%emt 0:00:10]} 11. b3 {[%emt 0:00:02]} O-O {[%emt 0:00:09]} 12. Bb2 {[%emt 0:00:02]} Rd8 {[%emt 0:00:22]} 13. Rc1 {[%emt 0:00:13]} Nf6 {[%emt 0:01:59]} 14. Qb1 {[%emt 0:00:02]} Qd7 {[%emt 0:00:02]} 15. d3 {[%emt 0:00:23]} Nd4 {[%emt 0:01:00]} 16. O-O {[%emt 0:00:44]} Nd5 {[%emt 0:00:35] [#] And now ...Nxc3 would win.} 17. Rfe1 {[%emt 0:00:04]} Rac8 {[%emt 0:01:39]} 18. e3 {[%emt 0:05:29] Strongly threatening Nxd5.} Nxc3 {[%emt 0:03:28]} 19. Bxc3 {[%emt 0:00:03] [#] This pair of bishops is nice.} Nb5 $146 {[%emt 0:02:33]} ({Predecessor:} 19... Nf5 20. Red1 b6 21. Qb2 Bf8 22. Qe2 Qe7 23. Rc2 g6 24. Rdc1 Qd7 25. Bf1 Bg7 {½-½ (45) Cheparinov,I (2711)-Grandelius,N (2678) Germany 2019}) 20. Bb2 {[%emt 0:00:30]} Bf6 {[%emt 0:02:53]} 21. Bxf6 {[%emt 0:02:30]} gxf6 {[%emt 0:00:01]} 22. Red1 {[%emt 0:00:01]} Qe7 {[%emt 0:00:58]} 23. a4 {[%emt 0:00:55]} Nd6 {[%emt 0:00:16]} 24. d4 {[%emt 0:00:04]} cxd4 {[%emt 0:00:37]} 25. Rxd4 {[%emt 0:00:05]} Rxc1+ {[%emt 0:00:35]} 26. Qxc1 {[%emt 0:00:02]} b6 {[%emt 0:00:01]} 27. Qd2 {[%emt 0:00:35] White is more active.} f5 {[%emt 0:02:23]} 28. h4 {[%emt 0:01:29]} f6 {[%emt 0:00:43]} 29. e4 {[%emt 0:03:33]} fxe4 {[%emt 0:01:13]} ({But not} 29... e5 30. Rd5 $16) 30. Bxe4 {[%emt 0:00:03]} Nf7 {[%emt 0:00:05][%cal Bd6f7,Bf7d8,Bd8b7,Bb7c5][%mdl 32]} 31. Rxd8+ {[%emt 0:00:46]} Qxd8 {[%emt 0:00:23] The position is equal.} 32. Qxd8+ {[%emt 0:02:49]} Nxd8 $11 {[%emt 0:00:01] KB-KN} 33. Kf1 {[%emt 0:00:15]} f5 {[%emt 0:00:52]} 34. Bd3 {[%emt 0:00:16]} Nb7 {[%emt 0:01:28]} 35. Ke2 Nc5 {[%emt 0:00:55]} 36. Bc2 {[%emt 0:00:51]} Kf7 {[%emt 0:00:15] Weighted Error Value: White=0.04 (flawless) /Black=0.04 (flawless)} 1/2-1/2

[Event "1st Kallai Gabor Memorial 2022"]
[Site "Budapest"]
[Date "2022.11.28"]
[Round "3.4"]
[White "Horvath, Csaba"]
[Black "Beliavsky, Alexander G"]
[Result "1/2-1/2"]
[ECO "A46"]
[WhiteElo "2502"]
[BlackElo "2487"]
[Annotator "TA"]
[PlyCount "77"]
[EventDate "2022.11.28"]
[EventCountry "HUN"]
[SourceTitle "playchess.com"]
[Source "ChessBase"]
[SourceQuality "1"]
[TimeControl "1500+5"]

{[%evp 19,77,0,0,0,0,4,4,4,5,1,18,14,36,33,36,15,20,0,0,0,0,0,0,0,0,0,0,0,0,0,0,0,0,0,0,0,0,0,0,0,0,0,0,0,0,0,0,0,0,0,0,-8,-8,-8,8,0,0,-8,8,0]} 1. d4 {[%emt 0:00:08] Fernandez,D} Nf6 {[%emt 0:00:09]} 2. Nf3 {[%emt 0:00:03]} d5 {[%emt 0:00:04]} 3. c4 {[%emt 0:00:05]} e6 {[%emt 0:00:04]} 4. g3 {[%emt 0:00:12]} Bb4+ {[%emt 0:00:07]} 5. Bd2 {[%emt 0:00:03]} Be7 {[%emt 0:00:03]} 6. Bg2 {[%emt 0:00:02]} O-O {[%emt 0:00:04]} 7. O-O {[%emt 0:00:04]} c6 {[%emt 0:00:05]} 8. Qc2 {[%emt 0:00:08]} b6 {[%emt 0:00:07]} 9. Bf4 {[%emt 0:00:24]} Nbd7 {[%emt 0:00:38]} 10. cxd5 {[%emt 0:00:18] 10.Nbd2 is becoming the main line.} cxd5 {[%emt 0:00:48]} 11. Rc1 {[%emt 0:00:44] E08: Closed Catalan: Main Line: 7 Qc2.} Bb7 {[%emt 0:01:07]} 12. Qb3 {[%emt 0:00:49]} Rc8 {[%emt 0:00:46]} 13. Rxc8 {[%emt 0:00:48]} Qxc8 {[%emt 0:00:02]} 14. Nc3 {[%emt 0:00:03]} Nh5 {[%emt 0:00:49] is the legacy move (14...a6).} 15. Bg5 {[%emt 0:00:14] [#]} Qd8 $146 {[%emt 0:01:06]} ({Predecessor:} 15... Bxg5 16. Nxg5 Qb8 17. e3 Nhf6 18. Bf1 h6 19. Nf3 Ne4 20. a4 Rc8 21. a5 bxa5 22. Rxa5 {½-½ (36) Karjakin,S (2753)-Wei,Y (2743) Wijk aan Zee 2018 CBM 183 [Fernandez,D]}) 16. Bxe7 {[%emt 0:00:28]} Qxe7 {[%emt 0:00:01]} 17. a4 {[%emt 0:01:08]} a5 {[%emt 0:00:49] The position is equal.} 18. Qa3 {[%emt 0:00:32]} Qxa3 {[%emt 0:00:14]} 19. Rxa3 {[%emt 0:00:15]} Nhf6 {[%emt 0:00:01]} 20. e3 {[%emt 0:00:33]} Ba6 {[%emt 0:00:24]} 21. Bf1 {[%emt 0:00:53]} Bxf1 {[%emt 0:00:03]} 22. Kxf1 {[%emt 0:00:02]} Rc8 {[%emt 0:00:03]} 23. Ke2 {[%emt 0:00:46]} Kf8 {[%emt 0:00:01]} 24. Kd3 {[%emt 0:01:31]} Ke7 {[%emt 0:00:05]} 25. h3 {[%emt 0:00:05]} Ne4 26. Ke2 {[%emt 0:05:50]} Nd6 {[%emt 0:02:09]} 27. Nd2 {[%emt 0:00:11]} Nb8 {[%emt 0:00:55]} 28. Rb3 {[%emt 0:00:35]} Rc6 {[%emt 0:00:16]} 29. e4 dxe4 {[%emt 0:00:18]} 30. d5 {[%emt 0:02:10]} exd5 {[%emt 0:00:11] aiming for ...Ke6.} 31. Rxb6 {[%emt 0:01:22][%mdl 64] [#] Decoy} Rxb6 {[%emt 0:01:18]} 32. Nxd5+ {[%emt 0:00:02]} Ke6 {[%emt 0:00:02]} 33. Nxb6 $11 {[%emt 0:00:02][%mdl 4096] Endgame KNN-KNN} Nc6 {[%emt 0:00:02]} 34. Ke3 {[%emt 0:00:44]} f5 {[%emt 0:00:16]} 35. f3 {[%emt 0:00:36]} exf3 {[%emt 0:01:21]} 36. Nxf3 {[%emt 0:00:06]} Kf6 {[%emt 0:04:17]} 37. Nd5+ {[%emt 0:00:22]} Ke6 {[%emt 0:00:27]} 38. Nb6 {[%emt 0:00:02]} Kf6 {[%emt 0:00:25]} 39. Nd5+ {[%emt 0:00:08] Weighted Error Value: White=0.02 (flawless) /Black=0.03 (flawless)} 1/2-1/2

[Event "1st Kallai Gabor Memorial 2022"]
[Site "Budapest"]
[Date "2022.11.28"]
[Round "3.5"]
[White "Troff, Kayden"]
[Black "Gaal, Zsoka"]
[Result "1/2-1/2"]
[ECO "B11"]
[WhiteElo "2483"]
[BlackElo "2286"]
[Annotator "TA"]
[PlyCount "47"]
[EventDate "2022.11.28"]
[EventCountry "HUN"]
[SourceTitle "playchess.com"]
[Source "ChessBase"]
[SourceQuality "1"]
[TimeControl "1500+5"]

{[%evp 12,47,9,9,7,8,11,0,6,12,15,15,19,17,18,13,16,16,11,0,10,2,8,5,4,7,15,0,18,0,64,59,109,114,575,569,517,502]} 1. e4 {[%emt 0:00:08]} c6 {[%emt 0:00:09]} 2. Nf3 {[%emt 0:00:02]} d5 {[%emt 0:00:02]} 3. Nc3 {[%emt 0:00:03]} Bg4 {[%emt 0:00:46]} 4. h3 {[%emt 0:00:02]} Bxf3 {[%emt 0:00:02]} 5. Qxf3 {[%emt 0:00:02]} e6 6. d3 {[%emt 0:00:03]} Nd7 {[%emt 0:01:38]} 7. Be2 {[%emt 0:00:03]} Bd6 {[%emt 0:00:29] The modern move. B11: Caro-Kann: Two Knights Variation.} 8. d4 {[%emt 0:03:00]} Ne7 {[%emt 0:02:19]} 9. O-O {[%emt 0:01:20]} O-O {[%emt 0:01:00] The position is equal.} 10. Bd3 {[%emt 0:00:44] [#]} e5 $146 ({Predecessor:} 10... Qb6 11. exd5 cxd5 12. Ne2 e5 13. dxe5 Nxe5 14. Qg3 Nc4 15. Qh4 Ng6 16. Qh5 Be5 {0-1 (43) Georgiadis,N (2577)-Dragnev,V (2551) Austria 2022}) 11. exd5 {[%emt 0:06:33]} exd4 {[%emt 0:03:19] [#]} 12. Qe4 $1 {[%emt 0:00:35][%csl Gd3,LRd4,LRh7][%cal Re4h7]} Nf6 {[%emt 0:01:17]} 13. Qxd4 {[%emt 0:00:05]} Nexd5 14. Nxd5 {[%emt 0:03:20]} (14. Bg5 {simplifies} h6 15. Nxd5 hxg5 16. Nxf6+ Qxf6 17. Qxf6 gxf6 18. Rad1) 14... Nxd5 {[%emt 0:01:47]} 15. Rd1 Re8 {[%emt 0:05:28]} 16. c4 {[%emt 0:04:14]} Nb4 {[%emt 0:02:02][%cal Oe8e1] White must now prevent ...Re1+!} 17. Be3 {[%cal Od4d6]} Nxd3 {[%emt 0:04:04]} 18. Rxd3 {[%emt 0:02:26]} (18. Qxd3 {simplifies} Be5 19. Qd7 Qxd7 20. Rxd7 b6 21. Rb1) 18... Be5 {[%emt 0:00:18]} 19. Qd7 {[%emt 0:00:08]} (19. Qxd8 {simplifies} Raxd8 20. Rad1 Rxd3 21. Rxd3 Bxb2 22. Rb3) 19... Qf6 {[%emt 0:00:54] Strongly threatening ...Rad8.} 20. Rad1 {[%emt 0:00:41]} Bxb2 {[%emt 0:00:49]} ({Better is} 20... h5 $11 21. Qxb7 Reb8) 21. Qxb7 {[%emt 0:00:27]} Be5 {[%emt 0:00:04] [#] Inhibits Rd6.} (21... Rab8 $14 22. Qxa7 Be5) 22. f4 $1 $16 {[%emt 0:01:46] White has more active pieces.} ({Don't play} 22. Bxa7 h6) 22... Rab8 $2 {[%emt 0:00:10][%mdl 8192]} (22... Bxf4 $2 23. Bxf4 h6 24. Bc7 $18) (22... Bb2 $16 {is a better chance.}) 23. fxe5 $18 {[%emt 0:00:06] Threatens to win with Qxb8.} ({Weaker is} 23. Qxa7 Bxf4 24. Bxf4 Qxf4 $11) 23... Qxe5 {[%emt 0:00:07]} 24. Qxc6 {[%emt 0:00:05][%mdl 32768] Weighted Error Value: White=0.04 (flawless) /Black=0.45. An unexpected result.} 1/2-1/2

[Event "1st Kallai Gabor Memorial 2022"]
[Site "Budapest"]
[Date "2022.11.29"]
[Round "4.1"]
[White "Motylev, Alexander"]
[Black "Gaal, Zsoka"]
[Result "1-0"]
[ECO "B12"]
[WhiteElo "2628"]
[BlackElo "2286"]
[Annotator "TA"]
[PlyCount "47"]
[EventDate "2022.11.28"]
[EventCountry "HUN"]
[SourceTitle "playchess.com"]
[Source "ChessBase"]
[SourceQuality "1"]
[TimeControl "1500+5"]

{[%evp 9,47,23,31,18,44,45,48,46,47,58,77,74,81,46,64,18,43,70,108,110,166,164,173,140,146,134,435,416,522,529,810,796,2131,1935,29977,29973,29987,29986,29982,29983]} 1. e4 {[%emt 0:00:08]} c6 {[%emt 0:00:06]} 2. d4 {[%emt 0:00:07]} d5 {[%emt 0:00:02]} 3. e5 {[%emt 0:00:01]} Bf5 {[%emt 0:00:02]} 4. Nf3 {[%emt 0:00:07]} e6 {[%emt 0:00:08]} 5. Be2 {[%emt 0:00:02]} Ne7 {[%emt 0:00:14][%cal Oc6c5]} 6. c3 {[%emt 0:00:03] B12: Caro-Kann: Advance Variation.} c5 {[%emt 0:02:06]} 7. dxc5 {[%emt 0:01:01]} Nec6 {[%emt 0:00:09]} 8. b4 {[%emt 0:00:40][%cal Bb2b4,Bb4b5][%mdl 32] White is slightly better.} Nd7 {[%emt 0:01:35]} 9. Nd4 {[%emt 0:00:31]} Be4 {[%emt 0:02:07]} 10. O-O {[%emt 0:00:28] [#]} Ndxe5 $146 {[%emt 0:00:58]} ({Predecessor:} 10... Ncxe5 11. Nd2 Be7 12. Nxe4 dxe4 13. Qc2 Nf6 14. Bb5+ Kf8 15. Bg5 Neg4 16. h3 h6 {1-0 (29) Ni,H (2670)-Gurevich,D (2483) Chess.com INT 2018}) 11. f3 {[%emt 0:00:49]} Bg6 {[%emt 0:02:09]} 12. Qa4 {[%emt 0:05:06]} (12. f4 $14 Nxd4 13. cxd4) 12... Qd7 {[%emt 0:04:25]} 13. b5 {[%emt 0:00:59]} Nxd4 {[%emt 0:02:15]} 14. cxd4 {[%emt 0:00:02]} Nc4 {[%emt 0:02:20] [#]} (14... Nd3 $16 {keeps fighting.}) 15. Bf4 $1 $18 {[%emt 0:01:25]} Rc8 {[%emt 0:01:54]} 16. Bxc4 {[%emt 0:00:25]} ({Resist} 16. Qxa7 $6 Be7 $14) 16... dxc4 {[%emt 0:00:01]} 17. Qxc4 {[%emt 0:00:04]} Bxc5 $2 {[%emt 0:02:06][%mdl 8192] Black cannot hold the game after this.} (17... f6 $16 {is tougher.}) 18. dxc5 {[%emt 0:00:15]} Bd3 {[%emt 0:00:02]} 19. Qc3 {[%emt 0:00:12]} Bxf1 {[%emt 0:00:23]} 20. Qxg7 {[%emt 0:00:20]} Qd1 21. Nd2 {[%emt 0:00:51][%mdl 64] [#] Discovered Attack} Qe2 {[%emt 0:03:11]} 22. Qxh8+ {[%emt 0:00:42] White mates.} Ke7 {[%emt 0:00:07]} 23. Bg5+ {[%emt 0:00:04]} (23. Qxc8 $2 Qxg2#) 23... Kd7 {[%emt 0:00:06]} 24. Qd4+ {[%emt 0:00:03] Weighted Error Value: White=0.11 (very precise) /Black=0.82} (24. Qxh7 $2 Qxg2#) 1-0

[Event "1st Kallai Gabor Memorial 2022"]
[Site "Budapest"]
[Date "2022.11.29"]
[Round "4.2"]
[White "Beliavsky, Alexander G"]
[Black "Troff, Kayden"]
[Result "1/2-1/2"]
[ECO "A05"]
[WhiteElo "2487"]
[BlackElo "2483"]
[Annotator "TA"]
[PlyCount "129"]
[EventDate "2022.11.28"]
[EventCountry "HUN"]
[SourceTitle "playchess.com"]
[Source "ChessBase"]
[SourceQuality "1"]
[TimeControl "1500+5"]

{[%evp 19,129,31,23,4,15,9,17,25,68,43,49,52,92,64,64,4,14,0,0,0,38,0,0,-35,-22,-29,-23,-22,0,0,0,0,0,-108,-62,-162,-64,-71,-53,-27,-30,-25,-27,-56,23,33,22,0,0,-18,-15,-40,-17,-16,0,0,127,128,29990,197,180,189,204,202,277,275,372,362,390,376,378,372,363,327,322,320,297,205,337,337,322,281,307,281,280,266,274,266,750,457,1137,1093,1075,1041,779,193,585,567,870,654,29959,29961,29937,29946,5591,40,40,40,40,40,40,17]} 1. Nf3 {[%emt 0:00:08]} Nf6 {[%emt 0:00:14]} 2. c4 {[%emt 0:00:03]} g6 {[%emt 0:00:35]} 3. Nc3 {[%emt 0:00:03]} d5 {[%emt 0:00:21]} 4. cxd5 {[%emt 0:00:03]} Nxd5 {[%emt 0:00:03]} 5. g3 {[%emt 0:00:03]} Bg7 {[%emt 0:00:57]} 6. Bg2 {[%emt 0:00:02]} O-O {[%emt 0:00:39]} 7. O-O {[%emt 0:00:03]} c6 {[%emt 0:01:54]} 8. d4 Nd7 {[%emt 0:00:50][%cal Bb8d7,Bd7b6,Bb6a4][%mdl 32]} 9. e4 {[%emt 0:01:35]} Nxc3 {[%emt 0:00:27]} 10. bxc3 {[%emt 0:00:02][%cal Bb2c3,Bc3c4,Bc4c5][%mdl 32]} Qa5 {[%emt 0:00:03]} 11. Bd2 {[%emt 0:01:06] D74: Fianchetto Grünfeld: Main Line (5 Nf3 0-0 6 cxd5 Nxd5 7 0-0).} Nb6 {[%emt 0:02:05]} 12. c4 {[%emt 0:01:39]} Qa6 {[%emt 0:02:34]} 13. c5 {[%emt 0:00:17] [#] The position is equal.} Na4 $146 {[%emt 0:00:16]} ({Predecessor:} 13... Nc4 14. Bc3 Na3 15. Re1 Be6 16. Bb4 Rfe8 17. Re3 Nc4 18. Rd3 Nb2 {0-1 (43) Toth,L (1998)-Toviskes,A (2019) Hungary 2015}) 14. Re1 {[%emt 0:03:58] aiming for Bf1.} b5 {[%emt 0:00:30]} 15. Bg5 {[%emt 0:01:39]} Qb7 {[%emt 0:01:48]} 16. Qc2 {[%emt 0:02:03]} Bg4 {[%emt 0:02:31]} 17. Ne5 {[%emt 0:03:00]} (17. Rad1 $14) 17... Be6 $11 {[%emt 0:01:12]} 18. Be3 {[%emt 0:00:36]} Bxe5 {[%emt 0:01:37]} 19. dxe5 {[%emt 0:00:02]} Rad8 {[%emt 0:02:06]} 20. f4 {[%emt 0:00:45]} Bc4 {[%emt 0:00:32]} 21. f5 {[%emt 0:00:55]} Qc7 {[%emt 0:01:11]} 22. e6 $1 {[%emt 0:02:21]} fxe6 {[%emt 0:00:11]} 23. fxg6 {[%emt 0:00:06]} hxg6 {[%emt 0:00:03]} (23... Qe5 {looks sharper.} 24. Bh6 Qd4+ 25. Be3 Qc3) 24. e5 $1 {[%emt 0:00:03]} Bd3 {[%emt 0:01:21]} (24... Qxe5 25. Qxg6+ Qg7 26. Qxg7+ Kxg7 27. Bxc6 $14) 25. Qb3 {[%emt 0:00:30]} Bf5 26. Bf2 {[%emt 0:01:44]} (26. Rad1 $11) 26... Rd2 {[%emt 0:01:06]} (26... Rd3 $1 $17 {[%cal Rd3b3]} 27. Qb4 g5) 27. Qb4 {[%emt 0:01:06]} (27. Qe3 $1 $15 Rb2 28. a3) 27... Qd8 {[%emt 0:00:42]} (27... Rc2 $19 {Strongly threatening ...Nb2.} 28. Rac1 Rxa2) 28. Be3 $1 $15 {[%emt 0:00:12] [#]} Rxg2+ {[%emt 0:01:03]} 29. Kxg2 {[%emt 0:00:02]} Qd5+ {[%emt 0:00:01]} 30. Kg1 {[%emt 0:00:02]} Bh3 {[%emt 0:00:09][%csl Gh3][%cal Rd5g2]} 31. Qd2 {[%emt 0:00:37] [#] Against Qg2+} Qxd2 {[%emt 0:00:07]} (31... Nc3 $1 $15) 32. Bxd2 $11 {[%emt 0:00:02]} Nxc5 {[%emt 0:00:06]} 33. Re3 {[%emt 0:01:00] Inhibits Nd3.} Na4 {[%emt 0:00:13]} 34. Re2 {[%emt 0:00:16]} c5 {[%emt 0:00:07]} 35. Rf2 {[%emt 0:00:01]} Rd8 {[%emt 0:00:03]} 36. Bg5 {[%emt 0:00:07]} Rd7 {[%emt 0:00:04]} 37. Rd2 {[%emt 0:00:02]} Rc7 {[%emt 0:00:14]} (37... Rd5 $11) 38. Rad1 {[%emt 0:00:10] White is more active.} c4 $2 {[%emt 0:00:08][%mdl 8192] [#]} (38... Nb6 $16) 39. Rd7 $2 {[%emt 0:00:05]} (39. Rd8+ $1 {mates} Kg7 40. Re8 Rc8 41. Rxc8 Nb6 42. Rc7 Nd5 43. Rxa7 c3 44. Rd4) 39... Rxd7 $18 40. Rxd7 {[%emt 0:00:02][%mdl 4096] Endgame KRB-KBN} c3 {[%emt 0:00:10]} 41. Rxa7 Nc5 {[%emt 0:00:07]} 42. Rc7 {[%emt 0:00:26]} ({But not} 42. Rxe7 Nd3 43. Bh6 Bf5 44. Rg7+ Kh8 $18) ({Don't play} 42. Bxe7 c2 43. Bg5 (43. Bxc5 c1=Q+ 44. Kf2 Qd2+ 45. Kf3 g5 46. Ra8+ Kh7 47. Ra7+ Kg6) 43... b4 $18) 42... Ne4 {[%emt 0:00:07]} 43. Bxe7 {[%emt 0:00:03]} Bg4 {[%emt 0:00:01]} 44. Bb4 {[%emt 0:00:04]} Be2 {[%emt 0:00:06]} 45. Bxc3 {[%emt 0:00:03]} Bc4 {[%emt 0:00:00]} 46. Bd4 {[%emt 0:00:01]} Bxa2 {[%emt 0:00:02]} 47. g4 {[%emt 0:00:08]} Bd5 {[%emt 0:00:02]} 48. h4 {[%emt 0:00:02] Against Ng5} b4 {[%emt 0:00:04]} (48... Nd2 {might work better.}) 49. Kh2 {[%emt 0:00:08]} b3 {[%emt 0:00:04]} 50. Kh3 {[%emt 0:00:09]} Nd2 {[%emt 0:00:04]} 51. Rc8+ {[%emt 0:00:27]} Kf7 {[%emt 0:00:01]} 52. Rb8 {[%emt 0:00:01]} Bc4 {[%emt 0:00:14]} 53. h5 {[%emt 0:00:12] And now h6 would win.} gxh5 {[%emt 0:00:01]} (53... g5 54. Be3 Nf3) 54. gxh5 {[%emt 0:00:01][%cal Bg4h5,Bh5h6][%mdl 32]} Be2 {[%emt 0:00:02]} (54... Kg7 $142 55. Rb7+ Kg8) 55. Rb7+ {[%emt 0:00:02]} Kg8 {[%emt 0:00:03]} 56. h6 {[%emt 0:00:03] Be3 is the strong threat.} Bf3 {[%emt 0:00:01]} 57. Rb6 $2 {[%emt 0:00:17]} (57. Rg7+ Kh8 58. Re7) 57... Be4 $2 {[%emt 0:00:03]} (57... Bd5 58. Rb8+ Kh7) 58. Kg4 {[%emt 0:00:11]} (58. Rxe6 $2 {too greedy.} Bf5+ 59. Kh4 Bxe6 $19) 58... Kf7 {[%emt 0:00:04]} 59. Kf4 {Black must now prevent Bc3.} Bf5 60. Be3 {[%emt 0:00:24]} Nc4 {[%emt 0:00:09]} 61. Rxb3 {[%emt 0:00:03]} Kg6 {[%emt 0:00:01]} 62. Kf3 $2 {[%emt 0:00:09]} ({Only move:} 62. Rc3 $18 Nxe3 63. Kxe3) 62... Nxe5+ $14 {[%emt 0:00:03] White is slightly better.} 63. Kg3 Ng4 {[%emt 0:00:02]} 64. Bc1 {[%emt 0:00:19]} Nxh6 {[%emt 0:00:03]} 65. Bxh6 {Weighted Error Value: White=0.48/Black=0.57} 1/2-1/2